bitfinex-derivatives/quotes_ETHF0:USTF0_20210407
["timestamp","ask_amount","ask_price","bid_price","bid_amount"]
[1617753602501,0.01378666,2112.1,2111.4,4.83835]
[1617753603400,0.01378276,2112.2,2111.4,4.83835]
[1617753603600,2.90695,2111.5,2111.4,4.83835]
[1617753603801,1.80695,2111.5,2111.4,4.83835]
[1617753605903,1.80695,2111.5,2111.4,34.83835]
[1617753607505,1.80695,2111.5,2111.4,36.83835]
[1617753608106,1.80695,2111.5,2111.4,34.83835]
[1617753609708,1.80695,2111.5,2111.4,4.83835]
[1617753614610,1.80695,2111.5,2111.4,1.9314]
[1617753614811,1.80695,2111.5,2111.4,2.1543]
[1617753615614,1.80695,2111.5,2111.4,1.8116]
[1617753617716,1.80695,2111.5,2111.4,4.71855]
[1617753618716,1.80695,2111.5,2111.4,34.71855]
[1617753618916,1.80695,2111.5,2111.4,4.71855]
[1617753619516,1.80695,2111.5,2111.4,34.71855]
[1617753619716,1.80695,2111.5,2111.4,36.71855]
[1617753621817,1.80695,2111.5,2111.4,6.71855]
[1617753622919,1.80695,2111.5,2111.4,4.71855]
[1617753630427,1.80695,2111.5,2111.4,34.71855]
[1617753630627,0.01378976,2112.1,2111.4,34.71855]
[1617753630829,0.01378976,2112.1,2111.5,2.0]
[1617753631028,0.01379253,2112.2,2111.6,30.0]
[1617753631227,0.01379253,2112.2,2111.4,4.71855]
[1617753631827,0.01379253,2112.2,2111.9,2.90695]
[1617753632232,0.01379253,2112.2,2111.9,5.41585]
[1617753632431,0.01379677,2112.3,2111.9,5.41585]
[1617753633533,0.01379403,2112.2,2111.9,5.41585]
[1617753633732,2.90695,2112.0,2111.9,5.41585]
[1617753634932,2.90695,2112.0,2111.9,2.5089]
[1617753635132,2.90695,2112.0,2110.9,2.0]
[1617753635732,0.0137878,2112.1,2111.4,2.90695]
[1617753636333,0.01378922,2112.2,2111.4,2.90695]
[1617753636733,0.01378894,2112.1,2111.4,2.90695]
[1617753637733,2.90695,2111.5,2111.4,2.90695]
[1617753640337,5.85305,2111.5,2111.4,2.90695]
[1617753644042,2.90695,2111.5,2111.4,2.90695]
[1617753648548,2.90695,2111.5,2111.4,5.61115]
[1617753649548,2.90695,2111.5,2111.4,35.61115]
[1617753650550,2.90695,2111.5,2111.4,37.61115]
[1617753653350,2.90695,2111.5,2111.4,38.71115]
[1617753654953,0.01379733,2112.6,2111.4,38.71115]
[1617753656254,0.01379733,2112.6,2111.9,2.90695]
[1617753656454,0.01379733,2112.6,2111.9,5.18545]
[1617753658155,2.90695,2112.0,2111.9,5.18545]
[1617753662360,2.90695,2112.0,2111.9,35.18545]
[1617753662563,1.12756562,2112.9,2111.9,37.18545]
[1617753662564,1.11378506,2112.9,2111.9,37.18545]
[1617753662764,1.11378506,2112.9,2111.9,35.18545]
[1617753662964,1.1,2112.9,2111.9,35.18545]
[1617753663365,1.1,2113.0,2112.0,2.0]
[1617753663564,4.63489618,2113.2,2112.1,30.0]
[1617753663765,3.671,2113.2,2112.2,2.0]
[1617753663964,3.671,2113.2,2112.3,30.0]
[1617753664164,3.671,2113.2,2112.3,32.0]
[1617753664367,3.671,2113.2,2112.8,2.90695]
[1617753664964,3.671,2113.2,2112.8,5.33165]
[1617753665364,4.6228,2113.2,2112.8,5.33165]
[1617753665965,3.671,2113.2,2112.8,2.4247]
[1617753666166,3.671,2113.2,2112.3,30.0]
[1617753666366,4.00695,2112.9,2112.4,2.90695]
[1617753666566,4.00695,2112.9,2112.4,4.80045]
[1617753667767,2.90695,2112.9,2112.4,34.80045]
[1617753668368,2.90695,2112.9,2112.8,2.90695]
[1617753670873,2.90695,2112.9,2112.8,32.90695]
[1617753675580,0.01381721,2113.7,2112.8,32.90695]
[1617753676179,0.02763484,2113.8,2112.8,32.90695]
[1617753676180,0.01381664,2113.6,2112.8,32.90695]
[1617753676380,0.01381664,2113.6,2113.3,2.90695]
[1617753678181,1.1,2114.0,2113.3,2.90695]
[1617753678382,2.90695,2113.4,2113.3,2.90695]
[1617753678583,4.00695,2113.4,2113.3,2.90695]
[1617753699508,4.00695,2113.4,2112.3,30.0]
[1617753699709,6.27825,2113.4,2112.3,30.0]
[1617753700409,3.3713,2113.4,2112.8,2.90695]
[1617753702510,2.90695,2112.9,2112.8,2.90695]
[1617753703709,2.90695,2112.9,2111.4,30.0]
[1617753703909,2.90695,2112.9,2111.5,2.0]
[1617753704109,2.90695,2112.9,2111.6,30.0]
[1617753704310,2.90695,2112.9,2111.7,2.0]
[1617753704512,3.3713,2113.4,2112.7,2.90695]
[1617753704709,1.1,2113.4,2112.7,2.90695]
[1617753706512,2.90695,2112.8,2112.7,2.90695]
[1617753707915,2.90695,2112.8,2111.9,30.0]
[1617753708514,1.1,2113.4,2112.6,2.90695]
[1617753710520,2.90695,2112.7,2112.6,2.90695]
[1617753729441,4.00695,2112.7,2112.6,2.90695]
[1617753730646,4.00695,2112.7,2112.3,2.90695]
[1617753732748,2.90695,2112.4,2112.3,2.90695]
[1617753734053,4.00695,2112.4,2112.3,2.90695]
[1617753737657,4.00695,2112.4,2112.3,3.86225]
[1617753737859,4.00695,2112.4,2112.3,2.90695]
[1617753740461,4.00695,2112.4,2111.3,30.0]
[1617753740861,4.00695,2112.4,2112.3,2.90695]
[1617753742966,4.00695,2112.4,2112.3,3.86485]
[1617753743165,4.00695,2112.4,2112.3,2.90695]
[1617753749074,4.00695,2112.4,2112.3,4.78345]
[1617753749474,0.01379073,2113.0,2112.3,4.78345]
[1617753749673,1.1,2112.6,2112.3,4.78345]
[1617753749875,0.01380421,2113.1,2112.3,4.78345]
[1617753750277,0.9498,2113.1,2112.3,4.78345]
[1617753750475,2.0498,2113.1,2112.3,4.78345]
[1617753750676,1.1,2113.1,2112.3,4.78345]
[1617753750876,1.1,2113.1,2112.7,2.90695]
[1617753752478,2.0387,2113.1,2112.7,2.90695]
[1617753752879,4.00695,2112.8,2112.7,2.90695]
[1617753753079,4.00695,2112.8,2111.3,30.0]
[1617753754077,4.00695,2112.8,2111.4,30.0]
[1617753754281,4.00695,2112.8,2111.4,38.5441]
[1617753754479,4.00695,2112.8,2111.4,40.5441]
[1617753754778,4.00695,2112.8,2112.7,2.90695]
[1617753757681,4.00695,2112.8,2112.7,4.96555]
[1617753759581,4.96285,2112.8,2112.7,4.96555]
[1617753760181,4.00695,2112.8,2112.7,4.96555]
[1617753761387,4.00695,2112.8,2112.7,2.90695]
[1617753761582,4.00695,2112.8,2111.7,2.0]
[1617753761784,4.00695,2112.8,2111.6,30.0]
[1617753761785,5.93745,2112.8,2111.6,32.0]
[1617753762082,5.93745,2112.8,2111.6,30.0]
[1617753762886,2.90695,2112.0,2111.9,2.90695]
[1617753763085,2.90695,2112.0,2110.6,32.0]
[1617753763486,2.90695,2112.0,2110.7,5.89]
[1617753763686,2.90695,2112.0,2110.6,32.0]
[1617753763687,3.84245,2112.0,2110.6,32.0]
[1617753764187,2.90695,2112.0,2110.6,32.0]
[1617753764386,4.00695,2112.0,2110.6,2.0]
[1617753764586,4.00695,2112.0,2110.0,35.03586491]
[1617753764587,4.00695,2112.0,2110.1,2.0]
[1617753764786,1.1,2112.0,2111.1,2.90695]
[1617753765386,2.0534,2112.0,2111.1,2.90695]
[1617753765789,2.0671735,2112.0,2111.1,2.90695]
[1617753766189,0.01377287,2111.9,2111.1,2.90695]
[1617753766887,2.90695,2111.2,2111.1,2.90695]
[1617753767088,4.87325,2111.2,2111.1,2.90695]
[1617753777407,2.90695,2111.2,2111.1,2.90695]
[1617753777808,2.0534,2112.0,2111.1,2.90695]
[1617753778910,2.0534,2112.0,2111.4,2.90695]
[1617753780912,2.90695,2111.5,2111.4,2.90695]
[1617753783728,2.90695,2111.5,2109.9,37.0]
[1617753783926,5.43815,2111.5,2109.9,37.0]
[1617753784126,5.43815,2111.5,2109.9,39.0]
[1617753784325,5.43815,2111.5,2109.9,38.0]
[1617753784627,5.43815,2111.5,2109.9,39.0]
[1617753785026,2.5312,2111.5,2111.0,2.90695]
[1617753785226,1.1,2112.0,2111.0,2.90695]
[1617753787026,2.90695,2111.1,2111.0,2.90695]
[1617753787226,5.33335,2111.1,2111.0,2.90695]
[1617753803141,2.90695,2111.1,2111.0,2.90695]
[1617753813656,1.1,2111.7,2111.0,2.90695]
[1617753815260,2.90695,2111.1,2111.0,2.43075]
[1617753821068,1.1,2111.7,2111.0,2.43075]
[1617753821266,2.90695,2111.1,2111.0,2.43075]
[1617753835387,5.15605,2111.1,2111.0,2.43075]
[1617753847913,5.15605,2111.1,2110.0,2.0]
[1617753848109,5.15605,2111.1,2109.9,7.0]
[1617753849511,5.16986825,2111.1,2109.9,7.9544]
[1617753849710,2.26291825,2111.1,2110.4,2.90695]
[1617753851818,2.90695,2110.5,2110.4,2.90695]
[1617753852016,4.86485,2110.5,2110.4,2.90695]
[1617753866841,4.86485,2110.5,2110.0,7.0]
[1617753868041,1.9579,2110.5,2110.1,2.90695]
[1617753868241,1.1,2110.7,2110.1,2.90695]
[1617753870045,2.90695,2110.2,2110.1,2.90695]
[1617753877248,2.0328,2110.5,2110.0,7.0]
[1617753877448,1.1,2110.7,2110.0,7.0]
[1617753878248,2.90695,2110.1,2110.0,7.0]
[1617753887056,5.04725,2110.1,2110.0,7.0]
[1617753901575,1.1,2110.6,2110.0,9.2056]
[1617753902374,1.1,2110.6,2110.5,2.90695]
[1617753902574,2.90695,2111.3,2110.5,7.22965]
[1617753902774,1.1,2110.7,2110.5,7.22965]
[1617753902976,2.90695,2111.3,2110.5,7.22965]
[1617753903775,4.00695,2111.3,2110.5,7.22965]
[1617753904478,4.00695,2111.3,2111.2,2.90695]
[1617753904677,4.00695,2111.3,2111.2,5.14135]
[1617753908479,4.00695,2111.3,2111.2,2.90695]
[1617753911283,4.00695,2111.3,2111.2,2.78245]
[1617753915589,4.00695,2111.3,2111.2,0.65105]
[1617753915792,4.00695,2111.3,2111.2,5e-05]
[1617753916190,4.00695,2111.3,2110.1,2.0]
[1617753916590,4.00695,2111.3,2110.2,2.90695]
[1617753916591,1.1,2111.3,2110.2,2.90695]
[1617753918691,2.90695,2110.3,2110.2,2.90695]
[1617753918891,3.84125,2110.3,2110.2,2.90695]
[1617753920694,6.07575,2110.3,2110.2,2.90695]
[1617753922197,5.14145,2110.3,2110.2,2.90695]
[1617753922896,5.14145,2110.3,2110.2,3.86815]
[1617753923296,6.07945,2110.3,2110.2,3.86815]
[1617753923599,6.07945,2110.3,2110.2,2.90695]
[1617753926499,5.14145,2110.3,2110.2,2.90695]
[1617753926701,2.90695,2110.3,2110.2,2.90695]
[1617753949326,1.1,2110.6,2110.2,2.90695]
[1617753950527,1.1,2110.6,2110.2,4.90695]
[1617753950727,1.1,2110.6,2110.2,2.90695]
[1617753950927,1.1,2110.6,2110.5,2.90695]
[1617753952229,2.0557,2110.6,2110.5,2.90695]
[1617753953128,4.96265,2110.6,2110.5,2.90695]
[1617753953327,4.96265,2110.6,2110.0,7.0]
[1617753954330,4.96265,2110.6,2110.0,9.0]
[1617753955030,4.96265,2110.6,2110.0,5.0]
[1617753955229,2.0557,2110.6,2110.4,2.90695]
[1617753957229,2.90695,2110.5,2110.4,2.90695]
[1617753959431,4.00695,2110.5,2110.4,2.90695]
[1617753960533,2.90695,2110.5,2110.4,2.90695]
[1617753961734,4.00695,2110.5,2110.0,7.0]
[1617753963235,2.90695,2110.1,2110.0,7.0]
[1617753965036,2.90695,2110.1,2110.0,7.9603]
[1617753965636,2.90695,2110.1,2110.0,7.0]
[1617753966738,2.90695,2110.1,2110.0,7.9612]
[1617753967239,2.90695,2110.1,2110.0,7.0]
[1617753967640,2.90695,2110.1,2110.0,6.8519]
[1617753970143,2.90695,2110.1,2110.0,9.1002]
[1617753970345,2.90695,2110.1,2110.0,10.0347]
[1617753971345,1.1,2110.2,2110.0,9.1002]
[1617753973445,1.1,2110.2,2110.0,6.8519]
[1617753974045,1.1,2110.2,2110.0,7.8087]
[1617753974847,1.1,2110.2,2110.0,6.8519]
[1617753975547,1.1,2110.2,2110.0,5.4681]
[1617753975747,1.1,2110.2,2110.0,3.375]
[1617753976547,1.1,2110.2,2110.0,4.3338]
[1617753976747,1.1,2110.2,2110.0,3.375]
[1617753977346,2.90695,2110.1,2110.0,3.375]
[1617753978250,2.90695,2110.1,2110.0,4.3313]
[1617753978450,2.90695,2110.1,2110.0,3.375]
[1617753978952,5.10595,2110.1,2110.0,3.375]
[1617753985268,7.10595,2110.1,2110.0,3.375]
[1617753985468,8.20595,2110.1,2110.0,0.8247]
[1617753985669,8.20595,2110.1,2110.0,0.2803]
[1617753987268,8.20595,2110.1,2110.0,0.0001]
[1617753988673,8.21966014,2110.1,2110.0,0.0001]
[1617753989274,8.20595,2110.1,2110.0,0.0001]
[1617753989672,8.26069152,2110.1,2110.0,0.0001]
[1617753990474,8.26069152,2110.1,2106.6,5.0321603]
[1617753990675,8.4793968,2110.1,2106.4,35.03195512]
[1617753991075,0.01366999,2109.6,2106.5,2.0]
[1617753991476,0.01366999,2109.6,2107.4,2.90695]
[1617753992276,2.07386999,2109.6,2107.4,2.90695]
[1617753992477,2.0,2109.5,2107.4,2.90695]
[1617753992681,6.0203,2109.5,2107.4,2.90695]
[1617753992878,6.03396318,2109.5,2107.4,2.90695]
[1617753993279,0.01366467,2109.4,2107.4,4.90695]
[1617753993478,2.90695,2108.1,2107.9,2.90695]
[1617753993878,2.90695,2108.1,2108.0,2.0]
[1617753994079,2.90695,2108.1,2107.9,2.90695]
[1617753995280,1.1,2109.2,2107.9,2.90695]
[1617753995482,1.1,2109.2,2108.6,2.90695]
[1617753995679,1.1,2109.2,2108.6,5.47195]
[1617753996080,1.1,2109.6,2108.6,5.47195]
[1617753996882,0.01370151,2110.5,2108.6,5.47195]
[1617753997480,0.01370151,2110.5,2109.3,2.90695]
[1617753997680,0.01370151,2110.5,2108.6,2.565]
[1617753997681,0.01370151,2110.5,2109.1,2.8466]
[1617753998283,0.01368215,2110.7,2109.1,2.8466]
[1617753998682,0.01368215,2110.7,2108.0,32.0]
[1617753999483,0.01368215,2110.7,2109.3,2.90695]
[1617754000083,4.05297414,2110.8,2109.3,2.90695]
[1617754000284,1.11367414,2110.8,2109.3,2.90695]
[1617754000484,1.1,2110.8,2109.3,2.90695]
[1617754001184,2.0539,2110.8,2109.3,2.90695]
[1617754001586,2.90695,2109.4,2109.3,2.90695]
[1617754001985,2.06758796,2110.8,2109.3,2.90695]
[1617754002387,2.0539,2110.8,2109.3,2.90695]
[1617754003186,1.1,2110.8,2109.4,2.0]
[1617754003389,1.1,2110.8,2109.4,32.0]
[1617754003587,1.1,2110.8,2110.6,2.90695]
[1617754003787,1.1,2110.8,2110.6,4.93305]
[1617754004187,2.0543,2110.8,2110.6,4.93305]
[1617754004387,1.1,2110.8,2110.6,4.85455]
[1617754005588,2.90695,2110.7,2110.6,4.85455]
[1617754006293,2.90695,2110.7,2109.6,2.0]
[1617754006492,3.86045,2110.7,2109.3,30.0]
[1617754006693,4.96045,2110.7,2109.3,30.0]
[1617754007093,4.96045,2110.7,2109.4,2.0]
[1617754007293,4.00695,2110.7,2109.4,2.0]
[1617754007493,1.1,2110.7,2110.0,2.90695]
[1617754008700,1.1,2110.7,2109.4,2.0]
[1617754009697,1.1,2110.7,2109.9,2.90695]
[1617754011698,2.90695,2110.0,2109.9,2.90695]
[1617754013299,1.1,2110.7,2109.9,2.90695]
[1617754013499,1.1,2110.7,2109.9,5.69395]
[1617754013698,1.1,2110.7,2110.5,2.90695]
[1617754015599,2.90695,2110.6,2110.5,2.90695]
[1617754015799,4.00695,2110.6,2110.5,2.90695]
[1617754017202,4.00695,2110.6,2110.5,34.90695]
[1617754017603,2.0496,2110.6,2110.5,34.90695]
[1617754019004,2.0496,2110.6,2110.5,2.90695]
[1617754019404,1.1,2110.6,2110.5,2.90695]
[1617754019604,2.90695,2110.9,2110.5,2.90695]
[1617754019806,4.00695,2110.9,2110.5,2.90695]
[1617754020005,4.00695,2110.9,2110.6,2.0]
[1617754021105,4.00695,2110.9,2110.5,2.90695]
[1617754021705,4.00695,2110.9,2110.8,2.90695]
[1617754023008,4.00695,2110.9,2110.8,5.13785]
[1617754023409,0.01374529,2111.8,2110.8,35.13785]
[1617754023610,0.01374015,2111.9,2111.5,2.90695]
[1617754024010,3.671,2112.0,2111.5,2.90695]
[1617754024609,1.1,2112.0,2111.5,2.90695]
[1617754025610,1.1,2112.0,2111.9,2.90695]
[1617754026613,2.0366,2112.0,2111.9,2.90695]
[1617754027212,2.0366,2112.0,2110.9,2.0]
[1617754027414,4.2256,2112.0,2110.6,30.0]
[1617754027612,4.2256,2112.0,2110.7,2.0]
[1617754027812,4.2256,2112.0,2111.5,2.90695]
[1617754028911,3.289,2112.0,2111.5,2.90695]
[1617754029114,1.1,2112.0,2111.5,2.90695]
[1617754029719,2.90695,2111.6,2111.5,2.90695]
[1617754029919,4.00695,2111.6,2111.5,2.90695]
[1617754031320,4.00695,2111.6,2111.0,2.0]
[1617754031521,4.00695,2111.6,2111.1,23.84075]
[1617754031722,4.00695,2111.6,2111.1,25.84075]
[1617754031926,1.1,2111.6,2111.3,2.90695]
[1617754032527,1.1,2111.6,2111.3,3.84895]
[1617754032725,1.1,2111.6,2111.3,2.90695]
[1617754033224,2.0576,2111.6,2111.3,2.90695]
[1617754033424,1.1,2111.6,2111.3,2.90695]
[1617754033826,2.90695,2111.4,2111.3,26.7477]
[1617754034025,4.00695,2111.4,2111.3,26.7477]
[1617754035031,4.00695,2111.4,2111.3,27.6985]
[1617754036132,4.00695,2111.4,2111.3,26.7477]
[1617754036833,4.00695,2111.4,2111.3,28.7477]
[1617754037032,0.01371828,2112.7,2111.3,28.7477]
[1617754037231,0.01372175,2112.8,2111.3,29.7019]
[1617754037830,0.01372175,2112.8,2111.8,2.90695]
[1617754038030,1.11372623,2113.0,2111.9,23.84075]
[1617754038431,1.1,2113.0,2111.9,23.84075]
[1617754039230,1.1,2113.0,2112.0,2.0]
[1617754039431,1.1,2113.0,2112.0,25.84075]
[1617754039831,1.1,2113.0,2112.2,2.90695]
[1617754040432,1.1,2113.0,2112.2,26.7477]
[1617754041232,1.1,2113.0,2112.2,27.6841]
[1617754041432,2.0606,2113.0,2112.2,27.6841]
[1617754041831,2.0606,2113.0,2112.9,2.90695]
[1617754043231,1.1,2113.0,2112.9,2.90695]
[1617754043631,1.1,2113.0,2112.0,23.84075]
[1617754043832,1.1,2113.0,2112.2,23.84075]
[1617754044032,1.1,2113.0,2112.6,2.90695]
[1617754044433,2.0552,2113.0,2112.6,2.90695]
[1617754045034,2.0552,2113.0,2112.6,29.1102]
[1617754045435,1.1,2113.0,2112.7,5.89]
[1617754045633,1.1,2113.0,2112.8,23.84075]
[1617754046032,1.1,2113.0,2112.9,4.90695]
[1617754046433,2.0331,2113.0,2112.9,4.90695]
[1617754046836,1.1,2113.0,2112.9,4.90695]
[1617754047634,1.1,2113.0,2112.9,28.7477]
[1617754048235,2.0577,2113.0,2112.9,28.7477]
[1617754048436,1.1,2113.0,2112.9,28.7477]
[1617754049038,3.90695,2113.2,2112.9,28.7477]
[1617754049238,5.00695,2113.2,2112.9,28.7477]
[1617754049639,3.0337,2113.2,2112.9,28.7477]
[1617754049838,3.0337,2113.2,2113.0,5.88]
[1617754050041,3.0337,2113.2,2113.0,29.72075]
[1617754050238,3.0337,2113.2,2113.1,2.0]
[1617754050944,2.1,2113.2,2113.1,2.0]
[1617754051345,2.1,2113.2,2113.1,25.84075]
[1617754051545,1.0,2113.2,2113.1,27.98635]
[1617754052153,1.956,2113.2,2113.1,27.98635]
[1617754052748,1.956,2113.2,2113.1,33.83635]
[1617754053150,2.90695,2113.5,2113.1,33.83635]
[1617754053449,1.0,2113.2,2113.1,33.83635]
[1617754053850,2.90695,2113.5,2113.1,33.83635]
[1617754054050,1.1,2113.8,2113.4,2.90695]
[1617754054251,1.1,2113.8,2113.5,25.84075]
[1617754054451,1.1,2113.8,2113.6,5.71]
[1617754054650,1.1,2113.8,2113.6,29.55075]
[1617754054850,4.00695,2114.2,2113.7,2.0]
[1617754055051,4.00695,2114.2,2113.7,31.57075]
[1617754055252,4.00695,2114.2,2113.7,32.52275]
[1617754055451,4.00695,2114.2,2113.7,26.79275]
[1617754055651,4.00695,2114.2,2113.7,25.84075]
[1617754056052,4.00695,2114.2,2114.1,2.90695]
[1617754056853,4.00695,2114.2,2113.1,32.0]
[1617754057654,4.00695,2114.2,2113.2,5.71]
[1617754057853,4.00695,2114.2,2113.3,32.0]
[1617754058053,4.00695,2114.2,2114.1,2.90695]
[1617754058854,4.95345,2114.2,2114.1,2.90695]
[1617754060055,3.85345,2114.2,2114.1,2.90695]
[1617754060654,3.85345,2114.2,2114.1,4.90695]
[1617754061254,3.85345,2114.2,2114.1,34.90695]
[1617754061455,0.9465,2114.2,2114.1,34.90695]
[1617754061854,0.9465,2114.2,2114.1,40.82695]
[1617754062055,3.1,2115.3,2114.1,40.82695]
[1617754062056,4.00695,2114.5,2114.1,40.82695]
[1617754062653,4.93975,2114.5,2114.1,40.82695]
[1617754063354,4.00695,2114.5,2114.1,40.82695]
[1617754063956,4.00695,2114.5,2114.4,2.90695]
[1617754064557,4.96615,2114.5,2114.4,2.90695]
[1617754066561,4.00695,2114.5,2114.4,2.90695]
[1617754067660,4.95575,2114.5,2114.4,2.90695]
[1617754068660,4.00695,2114.5,2114.4,2.90695]
[1617754070762,4.96035,2114.5,2114.4,2.90695]
[1617754071564,4.00695,2114.5,2114.4,2.90695]
[1617754072462,4.93945,2114.5,2114.4,2.90695]
[1617754072664,3.83945,2114.5,2114.4,32.90695]
[1617754072863,3.83945,2114.5,2114.4,38.81695]
[1617754074062,0.9325,2114.5,2114.4,38.81695]
[1617754074261,2.90695,2114.8,2114.4,38.81695]
[1617754076164,2.90695,2114.8,2114.7,2.90695]
[1617754077563,2.90695,2114.8,2114.7,3.86495]
[1617754078164,2.90695,2114.8,2114.7,2.90695]
[1617754078866,4.00695,2114.8,2114.7,2.90695]
[1617754079265,4.00695,2114.8,2114.7,3.83905]
[1617754079465,4.00695,2114.8,2114.7,2.90695]
[1617754079665,4.00695,2114.8,2113.4,32.0]
[1617754079867,5.88185,2114.8,2113.4,32.0]
[1617754080068,2.9749,2114.8,2114.4,2.90695]
[1617754081965,1.1,2114.8,2114.4,2.90695]
[1617754082165,2.90695,2114.5,2114.4,2.90695]
[1617754082565,3.84575,2114.5,2114.4,2.90695]
[1617754083768,2.90695,2114.5,2114.4,2.90695]
[1617754084168,5.30735,2114.5,2114.4,2.90695]
[1617754084666,6.24435,2114.5,2114.4,2.90695]
[1617754085066,5.30735,2114.5,2114.4,2.90695]
[1617754086067,6.26185,2114.5,2114.4,2.90695]
[1617754086268,6.26185,2114.5,2114.4,32.90695]
[1617754086869,3.86145,2114.5,2114.4,32.90695]
[1617754087070,3.86145,2114.5,2114.4,38.82695]
[1617754087270,2.90695,2114.5,2114.4,38.82695]
[1617754087470,2.90695,2114.5,2114.4,40.82695]
[1617754088170,0.9338,2114.5,2114.4,40.82695]
[1617754089170,2.90695,2114.8,2114.4,40.82695]
[1617754090172,2.90695,2114.8,2114.7,2.90695]
[1617754091973,2.90695,2114.8,2114.7,3.84175]
[1617754092575,2.90695,2114.8,2114.7,2.90695]
[1617754093775,2.90695,2114.8,2114.7,3.85905]
[1617754094877,2.90695,2114.8,2114.7,2.90695]
[1617754095879,2.90695,2114.8,2114.7,3.84485]
[1617754096979,2.90695,2114.8,2114.7,2.90695]
[1617754098381,2.90695,2114.8,2114.7,3.84245]
[1617754099780,3.1,2115.3,2114.7,9.71245]
[1617754100183,3.1,2115.3,2115.1,2.90695]
[1617754101482,4.058,2115.3,2115.1,3.86015]
[1617754102183,2.90695,2115.2,2115.1,3.86015]
[1617754103091,2.90695,2115.2,2115.1,2.90695]
[1617754103988,3.86635,2115.2,2115.1,3.86625]
[1617754104789,2.90695,2115.2,2115.1,2.90695]
[1617754105791,3.84985,2115.2,2115.1,3.86315]
[1617754107493,2.90695,2115.2,2115.1,2.90695]
[1617754108593,3.85245,2115.2,2115.1,3.86015]
[1617754108994,4.00695,2115.2,2115.1,2.90695]
[1617754109193,2.90695,2115.2,2114.2,2.0]
[1617754109793,2.90695,2115.2,2114.3,5.69]
[1617754109993,3.85995,2115.2,2114.3,35.69]
[1617754110393,2.0,2115.3,2114.8,2.90695]
[1617754110594,3.1,2115.3,2114.8,2.90695]
[1617754110793,3.1,2115.3,2114.8,3.84875]
[1617754111293,4.0317,2115.3,2114.8,2.90695]
[1617754112094,3.1,2115.3,2114.8,2.90695]
[1617754112294,2.90695,2114.9,2114.8,2.90695]
[1617754112496,2.90695,2114.9,2114.8,3.84135]
[1617754112695,2.90695,2114.9,2114.8,2.90695]
[1617754113396,2.90695,2114.9,2114.8,32.90695]
[1617754113796,3.1,2115.3,2114.8,38.74695]
[1617754113996,3.1,2115.3,2114.8,41.28315]
[1617754114297,3.1,2115.3,2115.2,2.90695]
[1617754116299,6.00695,2115.3,2115.2,2.90695]
[1617754120601,6.00695,2115.3,2115.2,5.37905]
[1617754124404,3.1,2115.3,2115.2,5.37905]
[1617754129011,3.1,2115.3,2115.2,11.24905]
[1617754133915,3.1,2115.3,2115.2,41.24905]
[1617754134314,2.0,2115.3,2115.2,41.24905]
[1617754141221,2.0,2115.3,2115.2,43.24905]
[1617754143526,2.90695,2115.6,2115.2,43.24905]
[1617754143927,2.0,2115.3,2115.2,43.24905]
[1617754146531,13.0,2115.3,2115.2,43.24905]
[1617754150538,12.0412,2115.3,2115.2,43.24905]
[1617754152142,12.0412,2115.3,2115.2,41.24905]
[1617754152343,12.0412,2115.3,2115.2,2.90695]
[1617754153542,12.0412,2115.3,2115.2,8.70695]
[1617754154444,12.0412,2115.3,2115.2,38.70695]
[1617754175073,12.0412,2115.3,2115.2,40.70695]
[1617754181489,12.0412,2115.3,2115.2,38.70695]
[1617754183391,12.0412,2115.3,2115.2,8.70695]
[1617754183594,12.0412,2115.3,2115.2,2.90695]
[1617754184891,12.0412,2115.3,2115.2,8.69695]
[1617754187392,12.0412,2115.3,2115.2,38.69695]
[1617754187992,12.0412,2115.3,2115.2,40.69695]
[1617754189194,11.0,2115.3,2115.2,40.69695]
[1617754189394,11.0,2115.3,2115.2,39.65575]
[1617754207220,8.5182,2115.3,2115.2,39.65575]
[1617754207419,1.6063,2115.3,2115.2,39.65575]
[1617754207621,5.1,2117.3,2115.2,39.65575]
[1617754208023,4.0,2117.3,2115.3,5.01090651]
[1617754208222,4.0,2117.3,2115.4,32.0]
[1617754208422,3.8143,2117.3,2115.6,5.01027621]
[1617754208622,3.8143,2117.3,2115.7,32.0]
[1617754208822,3.8143,2117.3,2115.8,10.73954561]
[1617754209022,3.8143,2117.3,2117.2,2.90695]
[1617754209221,3.8143,2117.3,2117.2,11.63715]
[1617754211125,2.1662,2117.3,2117.2,43.63715]
[1617754211325,4.00695,2118.0,2117.2,43.63715]
[1617754211525,1.1,2118.0,2117.2,43.63715]
[1617754211725,0.01391479,2119.1,2117.2,43.63715]
[1617754211924,0.01391461,2119.2,2117.2,43.63715]
[1617754212324,2.05101461,2119.2,2117.2,43.63715]
[1617754212525,1.11391461,2119.2,2117.2,43.63715]
[1617754212929,0.01393561,2119.0,2118.6,2.90695]
[1617754213727,1.1,2119.2,2118.6,2.90695]
[1617754214327,2.0532,2119.2,2118.6,2.90695]
[1617754214830,1.1,2119.2,2118.6,2.90695]
[1617754215029,4.00695,2118.7,2118.6,2.90695]
[1617754216830,1.1,2118.7,2118.6,8.76695]